Workbook

Sheet Sheet1
A1: 织金县总工会2019年公开招聘工会社会工作者笔试成绩
A3: 序号 | B3: 准考证号 | C3: 考场号 | D3: 笔试成绩 | E3: 加分 | F3: 总成绩
A4: 1 | B4: 20190701 | C4: 第一考场 | D4: 43.50 | F4: =D4+E4 -> 43.50
A5: 2 | B5: 20190702 | C5: 第一考场 | D5: 56.5 | E5: 10 | F5: 66.5
A6: 3 | B6: 20190703 | C6: 第一考场 | D6: 50 | F6: 50
A7: 4 | B7: 20190704 | C7: 第一考场 | D7: 63.5 | F7: 63.5
A8: 5 | B8: 20190705 | C8: 第一考场 | D8: 45.5 | F8: 45.5
A9: 6 | B9: 20190706 | C9: 第一考场 | D9: 38 | F9: 38
A10: 7 | B10: 20190707 | C10: 第一考场 | D10: 41.5 | F10: 41.5
A11: 8 | B11: 20190708 | C11: 第一考场 | D11: 39.5 | F11: 39.5
A12: 9 | B12: 20190709 | C12: 第一考场 | D12: 49 | F12: 49
A13: 10 | B13: 20190710 | C13: 第一考场 | D13: 缺考 | F13: 缺考
A14: 11 | B14: 20190711 | C14: 第一考场 | D14: 46.5 | F14: =D14+E14 -> 46.5
A15: 12 | B15: 20190712 | C15: 第一考场 | D15: 50.5 | E15: 10 | F15: 60.5
A16: 13 | B16: 20190713 | C16: 第一考场 | D16: 54.5 | F16: 54.5
A17: 14 | B17: 20190714 | C17: 第一考场 | D17: 缺考 | F17: 缺考
A18: 15 | B18: 20190715 | C18: 第一考场 | D18: 50.5 | F18: =D18+E18 -> 50.5
A19: 16 | B19: 20190716 | C19: 第一考场 | D19: 45.5 | F19: 45.5
A20: 17 | B20: 20190717 | C20: 第一考场 | D20: 31.5 | E20: 10 | F20: 41.5
A21: 18 | B21: 20190718 | C21: 第一考场 | D21: 24 | F21: 24
A22: 19 | B22: 20190719 | C22: 第一考场 | D22: 42 | F22: 42
A23: 20 | B23: 20190720 | C23: 第一考场 | D23: 51 | F23: 51
A24: 21 | B24: 20190721 | C24: 第一考场 | D24: 43.5 | F24: 43.5
A25: 22 | B25: 20190722 | C25: 第一考场 | D25: 14 | F25: 14
A26: 23 | B26: 20190723 | C26: 第一考场 | D26: 48 | F26: 48
A27: 24 | B27: 20190724 | C27: 第一考场 | D27: 52 | F27: 52
A28: 25 | B28: 20190725 | C28: 第一考场 | D28: 53.5 | F28: 53.5
A29: 26 | B29: 20190726 | C29: 第一考场 | D29: 44.5 | F29: 44.5
A30: 27 | B30: 20190727 | C30: 第一考场 | D30: 44.5 | F30: 44.5
A31: 28 | B31: 20190728 | C31: 第一考场 | D31: 49 | E31: 10 | F31: 59
A32: 29 | B32: 20190729 | C32: 第一考场 | D32: 50.5 | E32: 10 | F32: 60.5
A33: 30 | B33: 20190730 | C33: 第一考场 | D33: 缺考 | E33: 10 | F33: 缺考
A34: 31 | B34: 20190731 | C34: 第二考场 | D34: 46.5 | F34: =D34+E34 -> 46.5
A35: 32 | B35: 20190732 | C35: 第二考场 | D35: 54 | F35: 54
A36: 33 | B36: 20190733 | C36: 第二考场 | D36: 缺考 | F36: 缺考
A37: 34 | B37: 20190734 | C37: 第二考场 | D37: 41.5 | E37: 10 | F37: 51.5
A38: 35 | B38: 20190735 | C38: 第二考场 | D38: 47.5 | F38: 47.5
A39: 36 | B39: 20190736 | C39: 第二考场 | D39: 56.5 | F39: 56.5
A40: 37 | B40: 20190737 | C40: 第二考场 | D40: 49 | F40: 49
A41: 38 | B41: 20190738 | C41: 第二考场 | D41: 缺考 | F41: 缺考
A42: 39 | B42: 20190739 | C42: 第二考场 | D42: 47.5 | F42: =D42+E42 -> 47.5
A43: 40 | B43: 20190740 | C43: 第二考场 | D43: 48 | E43: 10 | F43: 58
A44: 41 | B44: 20190741 | C44: 第二考场 | D44: 61 | F44: 61
A45: 42 | B45: 20190742 | C45: 第二考场 | D45: 缺考 | F45: 缺考
A46: 43 | B46: 20190743 | C46: 第二考场 | D46: 缺考 | F46: 缺考
A47: 44 | B47: 20190744 | C47: 第二考场 | D47: 42 | E47: 10 | F47: =D47+E47 -> 52
A48: 45 | B48: 20190745 | C48: 第二考场 | D48: 缺考 | F48: 缺考
A49: 46 | B49: 20190746 | C49: 第二考场 | D49: 47 | E49: 10 | F49: 57
A50: 47 | B50: 20190747 | C50: 第二考场 | D50: 缺考 | E50: 10 | F50: 缺考
A51: 48 | B51: 20190748 | C51: 第二考场 | D51: 43.5 | F51: 43.5
A52: 49 | B52: 20190749 | C52: 第二考场 | D52: 41.5 | F52: 41.5
A53: 50 | B53: 20190750 | C53: 第二考场 | D53: 50 | E53: 10 | F53: 60
A54: 51 | B54: 20190751 | C54: 第二考场 | D54: 53 | F54: 53
A55: 52 | B55: 20190752 | C55: 第二考场 | D55: 49.5 | F55: 49.5
A56: 53 | B56: 20190753 | C56: 第二考场 | D56: 46 | F56: 46
A57: 54 | B57: 20190754 | C57: 第二考场 | D57: 60.5 | E57: 10 | F57: 70.5
A58: 55 | B58: 20190755 | C58: 第二考场 | D58: 51 | E58: 10 | F58: 61
A59: 56 | B59: 20190756 | C59: 第二考场 | D59: 49 | F59: 49
A60: 57 | B60: 20190757 | C60: 第二考场 | D60: 缺考 | F60: 缺考
A61: 58 | B61: 20190758 | C61: 第二考场 | D61: 33 | E61: 10 | F61: =D61+E61 -> 43
A62: 59 | B62: 20190759 | C62: 第二考场 | D62: 缺考 | F62: 缺考
A63: 60 | B63: 20190760 | C63: 第二考场 | D63: 46.5 | F63: 46.5
A64: 61 | B64: 20190761 | C64: 第三考场 | D64: 缺考 | E64: 10 | F64: 缺考
A65: 62 | B65: 20190762 | C65: 第三考场 | D65: 40.5 | F65: 40.5
A66: 63 | B66: 20190763 | C66: 第三考场 | D66: 47.5 | F66: 47.5
A67: 64 | B67: 20190764 | C67: 第三考场 | D67: 57 | E67: 10 | F67: 67
A68: 65 | B68: 20190765 | C68: 第三考场 | D68: 52.5 | F68: 52.5
A69: 66 | B69: 20190766 | C69: 第三考场 | D69: 48 | E69: 10 | F69: 58
A70: 67 | B70: 20190767 | C70: 第三考场 | D70: 48 | F70: 48
A71: 68 | B71: 20190768 | C71: 第三考场 | D71: 缺考 | E71: 10 | F71: 缺考
A72: 69 | B72: 20190769 | C72: 第三考场 | D72: 50.5 | F72: =D72+E72 -> 50.5
A73: 70 | B73: 20190770 | C73: 第三考场 | D73: 缺考 | F73: 缺考
A74: 71 | B74: 20190771 | C74: 第三考场 | D74: 43 | F74: 43
A75: 72 | B75: 20190772 | C75: 第三考场 | D75: 36.5 | F75: 36.5
A76: 73 | B76: 20190773 | C76: 第三考场 | D76: 51 | F76: 51
A77: 74 | B77: 20190774 | C77: 第三考场 | D77: 48 | E77: 10 | F77: 58
A78: 75 | B78: 20190775 | C78: 第三考场 | D78: 47.5 | F78: 47.5
A79: 76 | B79: 20190776 | C79: 第三考场 | D79: 40 | F79: 40
A80: 77 | B80: 20190777 | C80: 第三考场 | D80: 缺考 | F80: 缺考
A81: 78 | B81: 20190778 | C81: 第三考场 | D81: 47 | F81: =D81+E81 -> 47
A82: 79 | B82: 20190779 | C82: 第三考场 | D82: 51.5 | F82: 51.5
A83: 80 | B83: 20190780 | C83: 第三考场 | D83: 52 | F83: 52
A84: 81 | B84: 20190781 | C84: 第三考场 | D84: 49.5 | F84: 49.5
A85: 82 | B85: 20190782 | C85: 第三考场 | D85: 40.5 | F85: 40.5
A86: 83 | B86: 20190783 | C86: 第三考场 | D86: 57 | F86: 57
A87: 84 | B87: 20190784 | C87: 第三考场 | D87: 49 | E87: 10 | F87: 59
A88: 85 | B88: 20190785 | C88: 第三考场 | D88: 缺考 | F88: 缺考
A89: 86 | B89: 20190786 | C89: 第三考场 | D89: 56 | E89: 10 | F89: =D89+E89 -> 66
A90: 87 | B90: 20190787 | C90: 第三考场 | D90: 44 | F90: 44
A91: 88 | B91: 20190788 | C91: 第三考场 | D91: 52.5 | E91: 10 | F91: 62.5
A92: 89 | B92: 20190789 | C92: 第三考场 | D92: 缺考 | F92: 缺考
A93: 90 | B93: 20190790 | C93: 第三考场 | D93: 50.5 | F93: =D93+E93 -> 50.5
A94: 91 | B94: 20190791 | C94: 第四考场 | D94: 52.5 | F94: 52.5
A95: 92 | B95: 20190792 | C95: 第四考场 | D95: 51 | E95: 10 | F95: 61
A96: 93 | B96: 20190793 | C96: 第四考场 | D96: 43 | F96: 43
A97: 94 | B97: 20190794 | C97: 第四考场 | D97: 45 | F97: 45
A98: 95 | B98: 20190795 | C98: 第四考场 | D98: 49.5 | F98: 49.5
A99: 96 | B99: 20190796 | C99: 第四考场 | D99: 57 | F99: 57
A100: 97 | B100: 20190797 | C100: 第四考场 | D100: 48 | F100: 48
A101: 98 | B101: 20190798 | C101: 第四考场 | D101: 42.5 | F101: 42.5
A102: 99 | B102: 20190799 | C102: 第四考场 | D102: 缺考 | F102: 缺考
A103: 100 | B103: 201907100 | C103: 第四考场 | D103: 47 | F103: =D103+E103 -> 47
A104: 101 | B104: 201907101 | C104: 第四考场 | D104: 缺考 | E104: 10 | F104: 缺考
A105: 102 | B105: 201907102 | C105: 第四考场 | D105: 48 | F105: 48
A106: 103 | B106: 201907103 | C106: 第四考场 | D106: 40 | E106: 10 | F106: 50
A107: 104 | B107: 201907104 | C107: 第四考场 | D107: 46.5 | F107: 46.5
A108: 105 | B108: 201907105 | C108: 第四考场 | D108: 43 | E108: 10 | F108: 53
A109: 106 | B109: 201907106 | C109: 第四考场 | D109: 49 | F109: 49
A110: 107 | B110: 201907107 | C110: 第四考场 | D110: 51.5 | F110: 51.5
A111: 108 | B111: 201907108 | C111: 第四考场 | D111: 48.5 | E111: 10 | F111: 58.5
A112: 109 | B112: 201907109 | C112: 第四考场 | D112: 51 | F112: 51
A113: 110 | B113: 201907110 | C113: 第四考场 | D113: 缺考 | F113: 缺考
A114: 111 | B114: 201907111 | C114: 第四考场 | D114: 14 | F114: =D114+E114 -> 14
A115: 112 | B115: 201907112 | C115: 第四考场 | D115: 40.5 | E115: 10 | F115: 50.5
A116: 113 | B116: 201907113 | C116: 第四考场 | D116: 49.5 | F116: 49.5
A117: 114 | B117: 201907114 | C117: 第四考场 | D117: 48 | F117: 48
A118: 115 | B118: 201907115 | C118: 第四考场 | D118: 43 | E118: 10 | F118: 53
A119: 116 | B119: 201907116 | C119: 第四考场 | D119: 45 | F119: 45
A120: 117 | B120: 201907117 | C120: 第四考场 | D120: 46.5 | F120: 46.5
A121: 118 | B121: 201907118 | C121: 第四考场 | D121: 50 | E121: 10 | F121: 60
A122: 119 | B122: 201907119 | C122: 第四考场 | D122: 53 | E122: 10 | F122: 63
A123: 120 | B123: 201907120 | C123: 第四考场 | D123: 缺考 | F123: 缺考
A124: 121 | B124: 201907121 | C124: 第五考场 | D124: 54.5 | F124: =D124+E124 -> 54.5
A125: 122 | B125: 201907122 | C125: 第五考场 | D125: 缺考 | F125: 缺考
A126: 123 | B126: 201907123 | C126: 第五考场 | D126: 49.5 | F126: 49.5
A127: 124 | B127: 201907124 | C127: 第五考场 | D127: 缺考 | E127: 10 | F127: 缺考
A128: 125 | B128: 201907125 | C128: 第五考场 | D128: 缺考 | F128: 缺考
A129: 126 | B129: 201907126 | C129: 第五考场 | D129: 39.5 | F129: 39.5
A130: 127 | B130: 201907127 | C130: 第五考场 | D130: 48.5 | E130: 10 | F130: 58.5
A131: 128 | B131: 201907128 | C131: 第五考场 | D131: 38 | E131: 10 | F131: 48
A132: 129 | B132: 201907129 | C132: 第五考场 | D132: 41 | F132: 41
A133: 130 | B133: 201907130 | C133: 第五考场 | D133: 39.5 | F133: 39.5
A134: 131 | B134: 201907131 | C134: 第五考场 | D134: 49 | E134: 10 | F134: 59
A135: 132 | B135: 201907132 | C135: 第五考场 | D135: 缺考 | F135: 缺考
A136: 133 | B136: 201907133 | C136: 第五考场 | D136: 51.5 | F136: =D136+E136 -> 51.5
A137: 134 | B137: 201907134 | C137: 第五考场 | D137: 缺考 | F137: 缺考
A138: 135 | B138: 201907135 | C138: 第五考场 | D138: 39.5 | F138: 39.5
A139: 136 | B139: 201907136 | C139: 第五考场 | D139: 47.5 | F139: 47.5
A140: 137 | B140: 201907137 | C140: 第五考场 | D140: 47 | E140: 10 | F140: 57
A141: 138 | B141: 201907138 | C141: 第五考场 | D141: 缺考 | F141: 缺考
A142: 139 | B142: 201907139 | C142: 第五考场 | D142: 43 | E142: 10 | F142: =D142+E142 -> 53
A143: 140 | B143: 201907140 | C143: 第五考场 | D143: 50 | F143: 50
A144: 141 | B144: 201907141 | C144: 第五考场 | D144: 51.5 | F144: 51.5
A145: 142 | B145: 201907142 | C145: 第五考场 | D145: 缺考 | E145: 10 | F145: 缺考
A146: 143 | B146: 201907143 | C146: 第五考场 | D146: 缺考 | F146: 缺考
A147: 144 | B147: 201907144 | C147: 第五考场 | D147: 44 | F147: =D147+E147 -> 44
A148: 145 | B148: 201907145 | C148: 第五考场 | D148: 39.5 | F148: 39.5
A149: 146 | B149: 201907146 | C149: 第五考场 | D149: 缺考 | E149: 10 | F149: 缺考
A150: 147 | B150: 201907147 | C150: 第五考场 | D150: 缺考 | F150: 缺考
A151: 148 | B151: 201907148 | C151: 第五考场 | D151: 39 | F151: 39
A152: 149 | B152: 201907149 | C152: 第五考场 | D152: 缺考 | F152: 缺考
A153: 150 | B153: 201907150 | C153: 第五考场 | D153: 45 | E153: 10 | F153: =D153+E153 -> 55
A154: 151 | B154: 201907151 | C154: 第六考场 | D154: 54 | F154: 54
A155: 152 | B155: 201907152 | C155: 第六考场 | D155: 51.5 | F155: 51.5
A156: 153 | B156: 201907153 | C156: 第六考场 | D156: 缺考 | F156: 缺考
A157: 154 | B157: 201907154 | C157: 第六考场 | D157: 缺考 | E157: 10 | F157: 缺考
A158: 155 | B158: 201907155 | C158: 第六考场 | D158: 53 | F158: =D158+E158 -> 53
A159: 156 | B159: 201907156 | C159: 第六考场 | D159: 37 | F159: 37
A160: 157 | B160: 201907157 | C160: 第六考场 | D160: 缺考 | E160: 10 | F160: 缺考
A161: 158 | B161: 201907158 | C161: 第六考场 | D161: 43.5 | F161: 43.5
A162: 159 | B162: 201907159 | C162: 第六考场 | D162: 45 | F162: 45
A163: 160 | B163: 201907160 | C163: 第六考场 | D163: 缺考 | F163: 缺考
A164: 161 | B164: 201907161 | C164: 第六考场 | D164: 43.5 | F164: =D164+E164 -> 43.5
A165: 162 | B165: 201907162 | C165: 第六考场 | D165: 49 | F165: 49
A166: 163 | B166: 201907163 | C166: 第六考场 | D166: 缺考 | F166: 缺考
A167: 164 | B167: 201907164 | C167: 第六考场 | D167: 57.5 | F167: 57.5
A168: 165 | B168: 201907165 | C168: 第六考场 | D168: 40 | F168: 40
A169: 166 | B169: 201907166 | C169: 第六考场 | D169: 缺考 | F169: 缺考
A170: 167 | B170: 201907167 | C170: 第六考场 | D170: 缺考 | E170: 10 | F170: 缺考
A171: 168 | B171: 201907168 | C171: 第六考场 | D171: 59 | F171: =D171+E171 -> 59
A172: 169 | B172: 201907169 | C172: 第六考场 | D172: 50.5 | E172: 10 | F172: 60.5
A173: 170 | B173: 201907170 | C173: 第六考场 | D173: 缺考 | F173: 缺考
A174: 171 | B174: 201907171 | C174: 第六考场 | D174: 47 | F174: 47
A175: 172 | B175: 201907172 | C175: 第六考场 | D175: 57 | F175: 57
A176: 173 | B176: 201907173 | C176: 第六考场 | D176: 50.5 | E176: 10 | F176: 60.5
A177: 174 | B177: 201907174 | C177: 第六考场 | D177: 缺考 | F177: 缺考
A178: 175 | B178: 201907175 | C178: 第六考场 | D178: 43 | F178: =D178+E178 -> 43
A179: 176 | B179: 201907176 | C179: 第六考场 | D179: 52 | F179: 52
A180: 177 | B180: 201907177 | C180: 第六考场 | D180: 52 | F180: 52
A181: 178 | B181: 201907178 | C181: 第六考场 | D181: 44 | E181: 10 | F181: 54
A182: 179 | B182: 201907179 | C182: 第六考场 | D182: 46 | E182: 10 | F182: 56
A183: 180 | B183: 201907180 | C183: 第六考场 | D183: 32 | F183: 32
A184: 181 | B184: 201907181 | C184: 第七考场 | D184: 缺考 | E184: 10 | F184: 缺考
A185: 182 | B185: 201907182 | C185: 第七考场 | D185: 49.5 | F185: =D185+E185 -> 49.5
A186: 183 | B186: 201907183 | C186: 第七考场 | D186: 42.5 | F186: 42.5
A187: 184 | B187: 201907184 | C187: 第七考场 | D187: 49 | F187: 49
A188: 185 | B188: 201907185 | C188: 第七考场 | D188: 40.5 | E188: 10 | F188: 50.5
A189: 186 | B189: 201907186 | C189: 第七考场 | D189: 39 | E189: 10 | F189: 49
A190: 187 | B190: 201907187 | C190: 第七考场 | D190: 33.5 | F190: 33.5
A191: 188 | B191: 201907188 | C191: 第七考场 | D191: 44 | F191: 44
A192: 189 | B192: 201907189 | C192: 第七考场 | D192: 40 | F192: 40
A193: 190 | B193: 201907190 | C193: 第七考场 | D193: 43.5 | F193: 43.5
A194: 191 | B194: 201907191 | C194: 第七考场 | D194: 缺考 | F194: 缺考
A195: 192 | B195: 201907192 | C195: 第七考场 | D195: 51 | F195: =D195+E195 -> 51
A196: 193 | B196: 201907193 | C196: 第七考场 | D196: 42.5 | F196: 42.5
A197: 194 | B197: 201907194 | C197: 第七考场 | D197: 46 | F197: 46
A198: 195 | B198: 201907195 | C198: 第七考场 | D198: 49.5 | F198: 49.5
A199: 196 | B199: 201907196 | C199: 第七考场 | D199: 45.5 | F199: 45.5
A200: 197 | B200: 201907197 | C200: 第七考场 | D200: 缺考 | F200: 缺考
A201: 198 | B201: 201907198 | C201: 第七考场 | D201: 53.5 | F201: =D201+E201 -> 53.5
... 842 more rows
